Cogmind - Beta 16.1 @@@ ROGUE MODE // 2026.04.29 @ 22:55:31 Player: The Overplayer Result: Destroyed by B-86 Titan with Hardcell Cannon Performance ------------- Evolutions (5) 2500 Regions Visited (11) 2200 Robots Destroyed (115) 575 Value Destroyed (3787) 3787 Prototype IDs (13) 260 Alien Tech Used (0) 0 Bonus (400) 400 TOTAL SCORE: 9722 Bonus ------- High Alert Combat Kills 506 Follower Combat Kills 1005 Registered with UFD 300 Met Optimus in HQ 500 Friendly Fire -1911 Cogmind --------- Core Integrity 0/1000 Matter 295/300 Energy 98/100 System Corruption 27% Temperature Cool (9) Movement Core (50) Location -4/Proximity Caves Parts ------- > --- POWER (2) -------- (None) > --- PROPULSION (4) --- (None) > --- UTILITY (8) ------ (None) > --- WEAPON (3) ------- (None) > --- INVENTORY (5) ---- Compact Battery (47) Experimental Sensor Array Beamcaster Heavy Rocket Launcher Peak State ------------ > --- POWER ------------ Reinforced Fission Core Particle Reactor > --- PROPULSION ------- Medium Treads Spiked Medium Treads Heavy Treads > --- UTILITY ---------- Advanced Heat Sink Advanced Coolant Injector Improved Medium Armor Plating Improved Medium Armor Plating Layered Heavy Armor Plating Enhanced Scrap Shield > --- WEAPON ----------- Wave Gun KE Penetrator KE Penetrator > --- INVENTORY -------- Advanced Heat Sink Experimental Sensor Array Wave Gun Long-range Proton Cannon Heavy Rocket Launcher [Rating: 100] Favorites ----------- Power F-cell Engine Engine F-cell Engine Power Core Reinforced Fission Core Reactor Particle Reactor Propulsion Improved Medium Treads Treads Improved Medium Treads Leg Improved Titanium Leg Wheel Wheel Hover Unit Improved Hover Unit Utility Advanced Heat Sink Device Advanced Heat Sink Storage Large Storage Unit Processor Transport Network Coupler Protection Improved Medium Armor Plating Weapon Autogun Energy Gun Wave Gun Energy Cannon Phase Cannon Ballistic Gun Autogun Ballistic Cannon Magnetic Acceleration Cannon Launcher Scatter Rocket Array Special Weapon CPS Tube Impact Weapon Powered Hammer Special Melee Weapon Datajack Build | -11 -10 -10 -9 -6 -6 -6 -5 -5 -5 -5 -4 ------- Run | Yrd Mat Sub Scr Fac Was Fac Fac Upp Upp Zhi Pro Slots Evolved 10 | . . . . 8 . . 2 . . . . Power 1 | . . . . 1 . . . . . . . Propulsion 2 | . . . . 2 . . . . . . . Utility 6 | . . . . 4 . . 2 . . . . Weapon 1 | . . . . 1 . . . . . . . Parts Attached 98 | 7 17 1 6 21 3 8 19 6 1 . 9 Power 14 | 1 3 . 1 4 . . 2 2 . . 1 Engine 7 | 1 3 . . 3 . . . . . . . Core 5 | . . . 1 1 . . 2 1 . . . Reactor 2 | . . . . . . . . 1 . . 1 Propulsion 23 | 2 2 1 3 4 . 2 5 2 . . 2 Treads 12 | . . . . 4 . 1 5 2 . . . Leg 6 | 2 . . 2 . . . . . . . 2 Wheel 1 | . . . 1 . . . . . . . . Hover 4 | . 2 1 . . . 1 . . . . . Flight . | . . . . . . . . . . . . Utility 29 | 2 3 . 1 7 1 3 7 2 1 . 2 Device 13 | 1 . . . 4 1 1 4 . . . 2 Storage 5 | 1 2 . 1 . . . 1 . . . . Processor 4 | . 1 . . 2 . 1 . . . . . Hackware . | . . . . . . . . . . . . Protection 7 | . . . . 1 . 1 2 2 1 . . Artifact . | . . . . . . . . . . . . Weapon 32 | 2 9 . 1 6 2 3 5 . . . 4 Energy Gun 8 | 1 1 . . . . 1 2 . . . 3 Energy Cannon 5 | . . . 1 2 . 1 . . . . 1 Ballistic Gun 13 | 1 7 . . 1 1 1 2 . . . . Ballistic Cannon 2 | . . . . 1 1 . . . . . . Launcher 1 | . . . . 1 . . . . . . . Special Weapon 1 | . . . . . . . 1 . . . . Impact Weapon 1 | . . . . 1 . . . . . . . Slashing Weapon . | . . . . . . . . . . . . Piercing Weapon . | . . . . . . . . . . . . Special Melee Weapon 1 | . 1 . . . . . . . . . . Unidentified Prototypes 7 | . . . . 3 . 3 . 1 . . . Corrupted Parts 4 | . . . . . . . . . . . 4 System Corruption 27 | . . . . . . . . . . . 27 Parts Lost 33 | . 1 1 . . 1 7 5 . . . 18 Power 4 | . 1 . . . . . 1 . . . 2 Propulsion 13 | . . 1 . . . 5 2 . . . 5 Utility 7 | . . . . . . . 1 . . . 6 Weapon 9 | . . . . . 1 2 1 . . . 5 Highest Loss Streak 9 | . 1 1 . . 1 4 4 . . . 9 To Critical Strikes . | . . . . . . . . . . . . Average Backups 8 | 1 6 7 6 11 13 13 1 3 4 4 4 Power . | . . . . . 1 . . . . . . Propulsion . | . 1 1 1 . . . . . . . . Utility 3 | . 1 2 2 4 6 5 . 1 1 1 1 Weapon 3 | . 2 3 2 4 4 4 . 1 3 3 3 Tool/Special . | . . . . . . . . . . . . Unused Backups 20 | . 3 2 4 1 1 6 . . . . 3 Power 1 | . . . 1 . . . . . . . . Propulsion 2 | . . . 1 1 . . . . . . . Utility 11 | . 3 2 1 . . 4 . . . . 1 Weapon 6 | . . . 1 . 1 2 . . . . 2 Tool/Special . | . . . . . . . . . . . . Average Slot Usage (%) 88 | . 95 97 99 81 92 91 60 85 82 82 65 Engine 7 | . 12 14 5 11 13 12 . . . . . Core 3 | . . . 8 . . . 6 9 5 5 1 Treads 11 | . . . . 11 26 24 10 17 17 17 12 Leg 4 | . 9 . 10 7 . . . . . . . Hover 5 | . 17 25 14 . . . . . . . . Device 10 | . 9 . . 13 13 12 18 18 11 11 14 Storage 7 | . 14 14 14 6 6 5 . . . . . Processor 7 | . 4 14 14 7 13 12 . . . . . Protection 4 | . . . . . . . 6 19 23 23 12 Energy Gun 3 | . 7 . . . . 4 6 8 5 5 5 Energy Cannon 3 | . . . 8 8 1 1 . . . . 2 Ballistic Gun 10 | . 16 28 19 9 3 . 5 7 11 11 5 Ballistic Cannon 2 | . . . . . 9 12 . . . . . Peak Build Rating 100 | 7 12 12 28 77 80 81 84 98 98 97 100 Average Rating 55 | 5 9 11 19 61 78 78 64 94 97 97 77 On Entrance 50 | . 7 12 12 28 77 80 8 84 98 97 97 Avg Prop Armor Cover (%) 6 | . . . 6 . . 4 . . . . . Naked Turns 74 | . . . . . . 18 . . . . 56 Heaviest Build 108 | 13 22 14 41 75 77 87 62 104 104 104 108 Greatest Support 140 | 20 20 14 40 120 120 120 140 126 126 126 126 Greatest Overweight (x) 12 | . 2 1 4 1 . 1 3 . . . 12 Average Overweight (x) . | . . . . . . . . . . . . Largest Inventory Capacity 15 | 8 10 8 15 15 15 15 5 5 5 5 5 Average Capacity 10 | 7 8 8 12 15 15 14 5 5 5 5 5 Most Carried 15 | 3 10 8 15 15 15 15 5 5 5 4 5 Average Carried 9 | 1 6 7 8 13 14 14 2 4 4 4 4 Final Capacity 15 | 8 8 8 15 15 15 5 5 5 5 5 5 Final Carried 15 | 2 8 8 15 15 15 5 2 5 4 4 4 Scrap Suit Usage (%) 33 | . . . . 83 99 96 . . . . . Parts Cannibalized 4 | . . . . 4 . . . . . . . Class Distribution -------------------- 40% | Mutant 24% | Scavenger-Tank 22% | Skirmisher 9% | Gunner Dominant Class ---------------- Mutant | -10/Materials Mutant | -10/Subcaves Mutant | -9/Scraptown Gunner | -6/Factory Skirmisher | -6/Waste Skirmisher | -6/Factory Scavenger-Tank | -5/Factory Scavenger-Tank | -5/Upper Caves Scavenger-Tank | -5/Upper Caves Scavenger-Tank | -5/Zhirov Scavenger-Tank | -4/Proximity Caves Resources | -11 -10 -10 -9 -6 -6 -6 -5 -5 -5 -5 -4 ----------- Run | Yrd Mat Sub Scr Fac Was Fac Fac Upp Upp Zhi Pro Matter Collected 4623 | 288 405 110 50 421 1516 925 131 357 106 . 314 Remotely . | . . . . . . . . . . . . Salvage Created 5837 | 118 432 76 . 443 1304 1175 52 182 384 . 1671 Parts 208 | 9 30 5 . 20 15 36 16 10 13 . 54 Haulers Intercepted 5 | . 2 . . 2 . 1 . . . . . Recyclers Shooed 2 | 1 . . . . . 1 . . . . . Parts Field Recycled . | . . . . . . . . . . . . Retrieved Matter . | . . . . . . . . . . . . Parts Self-Destructed 69 | . . . . . . . . 22 9 . 38 Prevented 11 | . . . . . . . . . . . 11 Parts Restored . | . . . . . . . . . . . . Kills | -11 -10 -10 -9 -6 -6 -6 -5 -5 -5 -5 -4 ------- Run | Yrd Mat Sub Scr Fac Was Fac Fac Upp Upp Zhi Pro Combat Hostiles Destroyed 74 | . 11 2 . 7 6 14 1 3 4 . 26 Guns 50 | . 10 2 . 5 . 2 1 3 4 . 23 Cannons 13 | . . . . 2 . 9 . . . . 2 AOE 9 | . . . . . 6 3 . . . . . Classes Destroyed 17 | 2 5 1 . 1 1 4 . 2 1 . . Worker 9 | . . . . . . 6 3 . . . . Builder 4 | . . . . . . 3 1 . . . . Tunneler 2 | 2 . . . . . . . . . . . Hauler 5 | . 2 . . 2 . 1 . . . . . Recycler 5 | 1 . . . . . 4 . . . . . Operator 4 | . 2 . . 1 . 1 . . . . . Watcher 5 | . 3 . . . . 2 . . . . . Swarmer 23 | . 9 . . 4 . . . . . . 10 Grunt 27 | . 2 . . . . 12 . . 2 . 11 Brawler 1 | . . . . . . . . . 1 . . Duelist 4 | . . . . . . . . 2 . . 2 Protector 1 | . . . . . . 1 . . . . . Sentry 6 | . . . . . . 1 1 . 1 . 3 Hunter 1 | . . . . . . . . 1 . . . Programmer 3 | . . . . 3 . . . . . . . Compactor 6 | . . . . . 6 . . . . . . Subdweller 2 | . . 2 . . . . . . . . . Wasp 6 | . . . . . 6 . . . . . . Thug 1 | . . . . . 1 . . . . . . Best Kill Streak 9 | 3 5 2 . 3 2 9 2 2 3 . 6 Combat Bots Only 6 | . 4 2 . 3 2 4 1 2 3 . 6 Max Kills in Single Turn 8 | 1 2 1 . 1 7 8 1 1 1 . 2 Gunslinging 1 | . . . . . . . . . . . 1 Exploded 3 | . . . . . 1 3 . . . . . Melee . | . . . . . . . . . . . . Uniques/NPCs Destroyed . | . . . . . . . . . . . . Combat | -11 -10 -10 -9 -6 -6 -6 -5 -5 -5 -5 -4 -------- Run | Yrd Mat Sub Scr Fac Was Fac Fac Upp Upp Zhi Pro Hostile Shots Fired 727 | . 60 11 . 48 1 234 77 23 18 . 255 Missed 206 | . 16 5 . 10 . 69 21 6 2 . 77 Hits 521 | . 44 6 . 38 1 165 56 17 16 . 178 Melee 14 | . . . . . 1 . . . 4 . 9 Projectile 507 | . 44 6 . 38 . 165 56 17 12 . 169 AOE 1 | . . . . . . 1 . . . . . Critical Strikes 28 | . 2 . . 3 . 8 3 . 2 . 10 Damage Taken 10421 | . 517 139 . 545 502 2406 1609 307 433 . 3963 Core 1864 | . 109 . . 43 102 597 393 36 19 . 565 Absorbed by Shields 538 | . . . . . . 538 . . . . . Reduced by Siege Mode 113 | . . . . . . . . . 6 . 107 Regen/Repaired (Parts) 337 | . 91 . . 188 21 37 . . . . . Core Remaining (%) 56 | 100 . . 56 . . 12 . . . . . Volleys Fired 229 | 6 44 9 . 19 17 45 11 8 12 . 58 Largest 3 | 2 2 2 . 3 1 3 2 3 3 . 3 Hottest 202 | 70 90 46 . 198 50 190 162 195 147 . 202 Shots Fired 521 | 12 85 18 . 52 18 116 12 22 36 . 150 Gun 371 | 12 85 18 . 35 . 23 9 22 36 . 131 Cannon 128 | . . . . 17 . 92 . . . . 19 Launcher 20 | . . . . . 18 1 1 . . . . Special 2 | . . . . . . . 2 . . . . Kinetic 284 | 6 37 18 . 37 . 88 2 9 24 . 63 Thermal 196 | 6 48 . . 15 . 27 7 13 12 . 68 Explosive 20 | . . . . . 18 1 1 . . . . Electromagnetic 19 | . . . . . . . . . . . 19 Robot Hit Streak 18 | 6 8 6 . 11 6 13 9 8 12 . 18 Robot Miss Streak 8 | 2 6 2 . 5 8 8 1 1 2 . 3 Penetration Max 1 | . . . . . . 1 . . . . 1 Secondary Targets 8 | . . . . . . . . . 2 . 6 Max Gunslinging Chain 2 | . . . . . . . . . 1 . 2 Shots Hit Robots 340 | 7 54 13 . 29 18 69 9 16 27 . 98 Core Hits 266 | 4 24 4 . 14 64 57 24 7 12 . 56 Critical Kills 9 | . 1 . . 1 . 4 . . 1 . 2 Critical Parts Destroyed 10 | . 1 1 . . . 7 . . . . 1 Critical Strikes 36 | . 6 1 . 1 . 18 . . 3 . 7 Burn 9 | . 4 . . . . . . . 1 . 4 Meltdown 1 | . . . . 1 . . . . . . . Destroy 19 | . 2 1 . . . 11 . . 2 . 3 Blast 7 | . . . . . . 7 . . . . . Melee Attacks 8 | . 2 . . 6 . . . . . . . Impact 6 | . . . . 6 . . . . . . . Slashing . | . . . . . . . . . . . . Piercing . | . . . . . . . . . . . . Sneak Attacks 3 | . 2 . . 1 . . . . . . . Combat Hostiles . | . . . . . . . . . . . . Follow-up Attacks . | . . . . . . . . . . . . Damage Inflicted 14501 | 88 668 200 . 864 5649 2799 475 345 640 . 2773 Guns 5075 | 88 668 200 . 421 . 367 145 345 640 . 2201 Cannons 2267 | . . . . 322 . 1507 . . . . 438 Explosions 7005 | . . . . . 5649 922 310 . . . 124 Melee 121 | . . . . 121 . . . . . . . Ramming 33 | . . . . . . 3 20 . . . 10 Kinetic 4073 | 26 329 200 . 421 . 1500 49 132 399 . 1017 Thermal 2994 | 62 339 . . 322 . 413 96 213 241 . 1308 Explosive 6672 | . . . . . 5649 737 286 . . . . Electromagnetic 608 | . . . . . . 146 24 . . . 438 Impact 121 | . . . . 121 . . . . . . . Slashing . | . . . . . . . . . . . . Piercing . | . . . . . . . . . . . . Highest Corruption 27 | . . . . 3 3 3 . . . . 27 Average Corruption 5 | . . . . 2 3 3 . . . . 25 Corruption Purged . | . . . . . . . . . . . . Corruption Blocked . | . . . . . . . . . . . . Effects 65 | . . . . 7 12 28 . . . . 18 Message Errors 20 | . . . . . 7 9 . . . . 4 Matter Fused 14 | . . . . 1 2 8 . . . . 3 Heat Flow Errors 5 | . . . . 2 1 1 . . . . 1 Energy Discharges 5 | . . . . 1 1 2 . . . . 1 Parts Rejected 3 | . . . . 2 . . . . . . 1 Data Loss (minor) 7 | . . . . . . 3 . . . . 4 Data Loss (major) 2 | . . . . 1 . 1 . . . . . Misfires 5 | . . . . . 1 4 . . . . . Misdirections 2 | . . . . . . . . . . . 2 Weapon Failures 2 | . . . . . . . . . . . 2 Overload Shots . | . . . . . . . . . . . . Overflow Damage 197 | . . . . 158 . 18 3 . . . 18 Projectiles 61 | . . . . 61 . . . . . . . Explosions 39 | . . . . . . 18 3 . . . 18 Melee 97 | . . . . 97 . . . . . . . Knockbacks 19 | . . . . . . 19 . . . . . Impact . | . . . . . . . . . . . . Kinetic 16 | . . . . . . 16 . . . . . Secondary 3 | . . . . . . 3 . . . . . Self-Inflicted Damage 996 | . . . . . 482 158 274 . . . 82 Shots 41 | . . . . . 25 5 10 . . . 1 Rammed 24 | . . . . . . 1 21 . . . 2 Targets Rammed 25 | . . . . . . 1 21 . . . 3 Kicked 1 | . . . . . . . . . . . 1 Crushed . | . . . . . . . . . . . . Highest Temperature 592 | 18 210 . . 390 280 592 64 80 180 . 187 Average Temperature 135 | 9 59 . . 142 150 207 36 27 65 . 81 Received Heat Transfer 1993 | . 129 9 . . . 631 288 27 90 . 819 Effects 27 | . 1 . . . 1 25 . . . . . Energy Bleed 3 | . 1 . . . 1 1 . . . . . Interference 12 | . . . . . . 12 . . . . . Matter Decay 4 | . . . . . . 4 . . . . . Short Circuit 2 | . . . . . . 2 . . . . . Damage (minor) 2 | . . . . . . 2 . . . . . Damage (major) 3 | . . . . . . 3 . . . . . Damage (core) 1 | . . . . . . 1 . . . . . Siege Activations 6 | . . . . . . . . . 2 . 4 Total Turns 91 | . . . . . . . . . 23 . 68 Longest Duration 24 | . . . . . . . . . 15 . 24 Martial Activations . | . . . . . . . . . . . . Shielding Activations . | . . . . . . . . . . . . Robots Disrupted . | . . . . . . . . . . . . Combat Hostiles . | . . . . . . . . . . . . Robots Corrupted 1 | . . . . 1 . . . . . . . Combat Hostiles . | . . . . . . . . . . . . Parts Fried 1 | . . . . . . . . . . . 1 Impact Corruptions 1 | . . . . 1 . . . . . . . Robots Melted 3 | . 1 . . 1 . . . . . . 1 Combat Hostiles 2 | . 1 . . . . . . . . . 1 Parts Melted 9 | . . . . 1 . . 1 2 . . 5 Heat Transferred 5628 | 185 1212 . . 424 . 599 148 333 444 . 2283 Parts Sabotaged . | . . . . . . . . . . . . Parts Stolen . | . . . . . . . . . . . . Parts Stripped . | . . . . . . . . . . . . Power Chain Reactions 2 | . . . . . . 1 . . . . 1 Alert | -11 -10 -10 -9 -6 -6 -6 -5 -5 -5 -5 -4 ------- Run | Yrd Mat Sub Scr Fac Was Fac Fac Upp Upp Zhi Pro Maximum Alert Level 4 | . . . . . . 4 3 . . . . Low Security (%) 64 | 100 100 . . 100 100 14 . . . . . Level 1 6 | . . . . . . 21 . . . . . Level 2 15 | . . . . . . 38 45 . . . . Level 3 5 | . . . . . . 5 54 . . . . Level 4 6 | . . . . . . 20 . . . . . Level 5 . | . . . . . . . . . . . . High Security . | . . . . . . . . . . . . Max Security . | . . . . . . . . . . . . Peak Influence 1549 | 10 133 . . 81 47 1549 762 . . . . Initial 756 | . . . . . 23 . 756 . . . . Average 264 | 1 40 . . 25 8 607 699 . . . . Influence Increases 3935 | 15 327 . . 304 117 2295 125 70 97 . 585 Destroy 0b10 Robot/C 1860 | . 220 . . 140 . 820 20 60 80 . 520 Destroy 0b10 Robot/NC 225 | 15 35 . . 15 . 130 20 . 5 . 5 Destroy Leader 356 | . 50 . . 44 . 202 10 10 10 . 30 Allied During Kill 643 | . . . . . . 641 . . 2 . . Successful Hack 106 | . 6 . . 64 . 12 24 . . . . Disable Machine 255 | . . . . 15 . 225 15 . . . . Destroy Structure 355 | . 1 . . 11 117 190 36 . . . . Lose Combat Pursuer 135 | . 15 . . 15 . 75 . . . . 30 Influence Decreases 3845 | 15 327 . . 238 183 752 1035 615 185 . 495 Entered New Map 1082 | . . . . . 43 . 787 235 17 . . Time Decay 2213 | 15 327 . . 238 130 482 198 380 128 . 315 Lost Part 310 | . . . . . 10 70 50 . . . 180 Lost Ally 240 | . . . . . . 200 . . 40 . . Squads Dispatched 17 | . . . . 2 . 14 1 . . . . Investigation 4 | . . . . . . 4 . . . . . Extermination 4 | . . . . 2 . 2 . . . . . Reinforcement 7 | . . . . . . 7 . . . . . Assault 2 | . . . . . . 1 1 . . . . Garrison . | . . . . . . . . . . . . Intercept . | . . . . . . . . . . . . Searches Triggered . | . . . . . . . . . . . . Construction Impeded 4 | . . . . . . 4 . . . . . Haulers Reinforced 2 | . . . . . . 2 . . . . . Active Scanning Responses . | . . . . . . . . . . . . Cargo Convoy Interrupts . | . . . . . . . . . . . . Stealth | -11 -10 -10 -9 -6 -6 -6 -5 -5 -5 -5 -4 --------- Run | Yrd Mat Sub Scr Fac Was Fac Fac Upp Upp Zhi Pro Distress Signals 7 | . 3 . . . . 4 . . . . . Communications Jammed . | . . . . . . . . . . . . Distress Signals . | . . . . . . . . . . . . Times Spotted 130 | . 20 2 . 9 6 40 2 13 4 . 34 Peak Tracking Total 8 | . 6 2 . 4 2 8 2 7 3 . 6 Tactical Retreats 8 | . 1 . . 1 . 5 . . . . 1 Traps | -11 -10 -10 -9 -6 -6 -6 -5 -5 -5 -5 -4 ------- Run | Yrd Mat Sub Scr Fac Was Fac Fac Upp Upp Zhi Pro Traps Triggered 8 | . 2 . . 3 . 3 . . . . . Indirectly 2 | . . . . . . 2 . . . . . Trap Hack Attempts . | . . . . . . . . . . . . Triggered . | . . . . . . . . . . . . Disarmed . | . . . . . . . . . . . . Reprogrammed . | . . . . . . . . . . . . Reused . | . . . . . . . . . . . . Traps Extracted . | . . . . . . . . . . . . Installed . | . . . . . . . . . . . . Triggered . | . . . . . . . . . . . . Machines | -11 -10 -10 -9 -6 -6 -6 -5 -5 -5 -5 -4 ---------- Run | Yrd Mat Sub Scr Fac Was Fac Fac Upp Upp Zhi Pro Machines Disabled 18 | . . . . 1 . 15 1 1 . . . Max in Single Turn 3 | . . . . 1 . 3 1 1 . . . Garrison Access 2 | . . . . 1 . 1 . . . . . Machines Repaired . | . . . . . . . . . . . . Machines Dismantled . | . . . . . . . . . . . . Machines Sabotaged . | . . . . . . . . . . . . Overloaded Fab Kills . | . . . . . . . . . . . . Hacking | -11 -10 -10 -9 -6 -6 -6 -5 -5 -5 -5 -4 --------- Run | Yrd Mat Sub Scr Fac Was Fac Fac Upp Upp Zhi Pro Machines Accessed 29 | . 5 . 7 7 . 9 1 . . . . Terminals 10 | . 3 . . 4 . 3 . . . . . Fabricators 1 | . . . . . . 1 . . . . . Repair Stations 2 | . 1 . . 1 . . . . . . . Recycling Units 3 | . 1 . . 1 . 1 . . . . . Scanalyzers 4 | . . . . . . 3 1 . . . . Garrison Access 2 | . . . . 1 . 1 . . . . . Total Hacks 110 | . 18 . 50 14 . 26 2 . . . . Successful 79 | . 12 . 50 7 . 9 1 . . . . Failed 30 | . 6 . . 7 . 16 1 . . . . Catastrophic 6 | . 2 . . 3 . 1 . . . . . Database Lockouts 1 | . . . . . . 1 . . . . . Manual 11 | . 2 . . 2 . 7 . . . . . Terminals 24 | . 8 . . 9 . 7 . . . . . Fabricators 2 | . . . . . . 2 . . . . . Repair Stations 10 | . 8 . . 2 . . . . . . . Recycling Units 6 | . 2 . . 1 . 3 . . . . . Scanalyzers 14 | . . . . . . 12 2 . . . . Garrison Access 4 | . . . . 2 . 2 . . . . . Terminal Hacks 54 | . 2 . 50 2 . . . . . . . Record 50 | . . . 50 . . . . . . . . Terminal Index 1 | . . . . 1 . . . . . . . Registered Prototypes 1 | . 1 . . . . . . . . . . Zone Layout 2 | . 1 . . 1 . . . . . . . Fabricator Hacks . | . . . . . . . . . . . . Repair Station Hacks 9 | . 7 . . 2 . . . . . . . Scan Component 5 | . 4 . . 1 . . . . . . . Repair 4 | . 3 . . 1 . . . . . . . Recycling Unit Hacks 1 | . 1 . . . . . . . . . . Retrieve Components 1 | . 1 . . . . . . . . . . Scanalyzer 7 | . . . . . . 6 1 . . . . Insert Component 2 | . . . . . . 2 . . . . . Analyze 3 | . . . . . . 3 . . . . . Retrieve Study 2 | . . . . . . 1 1 . . . . Garrison Access Hacks 2 | . . . . 1 . 1 . . . . . Seal Access 2 | . . . . 1 . 1 . . . . . Unauthorized Hacks 6 | . 2 . . 2 . 2 . . . . . Terminals 6 | . 2 . . 2 . 2 . . . . . Botnet 3 | . 1 . . 1 . 1 . . . . . Skim 3 | . 1 . . 1 . 1 . . . . . Fabricators . | . . . . . . . . . . . . Repair Stations . | . . . . . . . . . . . . Recycling Units . | . . . . . . . . . . . . Scanalyzers . | . . . . . . . . . . . . Garrison Access . | . . . . . . . . . . . . Data Cores Recovered 2 | . 1 . . 1 . . . . . . . Used 1 | . . . . 1 . . . . . . . Hacking Detections 21 | . 5 . . 6 . 9 1 . . . . Full Trace Events 2 | . . . . . . 2 . . . . . Feedback Events . | . . . . . . . . . . . . Feedback Blocked . | . . . . . . . . . . . . Robot Schematics Acquired . | . . . . . . . . . . . . Robots Built . | . . . . . . . . . . . . Authchips . | . . . . . . . . . . . . Time . | . . . . . . . . . . . . Total Robot Build Rating . | . . . . . . . . . . . . Part Schematics Acquired 1 | . . . . . . 1 . . . . . Parts Built . | . . . . . . . . . . . . Authchips . | . . . . . . . . . . . . Time . | . . . . . . . . . . . . Total Part Build Rating . | . . . . . . . . . . . . Part Studies Acquired 2 | . . . . . . 1 1 . . . . Parts Repaired 4 | . 3 . . 1 . . . . . . . Time 100 | . 78 . . 22 . . . . . . . Parts Recycled . | . . . . . . . . . . . . Recycled Matter . | . . . . . . . . . . . . Retrieved Matter . | . . . . . . . . . . . . Retrieved Components 9 | . 9 . . . . . . . . . . Parts Scanalyzed 1 | . . . . . . 1 . . . . . Part Schematics Acquired 1 | . . . . . . 1 . . . . . Parts Damaged . | . . . . . . . . . . . . Bothacking | -11 -10 -10 -9 -6 -6 -6 -5 -5 -5 -5 -4 ------------ Run | Yrd Mat Sub Scr Fac Was Fac Fac Upp Upp Zhi Pro Used RIF Installer . | . . . . . . . . . . . . Robots Hacked 1 | . 1 . . . . . . . . . . Non-combat 1 | . 1 . . . . . . . . . . Combat . | . . . . . . . . . . . . Robot Hacks Applied 1 | . 1 . . . . . . . . . . parse_system 1 | . 1 . . . . . . . . . . Relay Couplers Released . | . . . . . . . . . . . . Fabnet Peak Effective % . | . . . . . . . . . . . . Robots Rewired 2 | . . . . . . . . 2 . . . Allies Hacked . | . . . . . . . . . . . . Hacks Repelled . | . . . . . . . . . . . . Allies | -11 -10 -10 -9 -6 -6 -6 -5 -5 -5 -5 -4 -------- Run | Yrd Mat Sub Scr Fac Was Fac Fac Upp Upp Zhi Pro Total Allies 21 | . . . . . 19 . . 2 . . . Largest Group 19 | . . . . . 19 12 . 2 2 . . Highest-Rated Group 684 | . . . . . 684 488 . 60 60 . . Highest-Rated Ally 50 | . . . . . 50 50 . 30 30 . . Initial UFD Resources 31 | . . . . 23 23 23 27 27 27 27 31 Total Orders . | . . . . . . . . . . . . Ally Attacks 127 | . . . . . . 125 . . 2 . . Total Damage 5327 | . . . . . . 5298 . . 29 . . Kills 37 | . . . . . . 37 . . . . . Allies Corrupted 2 | . . . . . . 2 . . . . . Allies Melted 1 | . . . . . . 1 . . . . . Intel | -11 -10 -10 -9 -6 -6 -6 -5 -5 -5 -5 -4 ------- Run | Yrd Mat Sub Scr Fac Was Fac Fac Upp Upp Zhi Pro Active Infowar (turns) 7827 | 10 1042 112 2382 1277 670 1404 371 559 . . . Sensors 3298 | . . . . 294 670 1404 371 559 . . . Seismic 731 | 10 721 . . . . . . . . . . T.N.C. 3460 | . 321 112 2382 645 . . . . . . . ECM 338 | . . . . 338 . . . . . . . Robot Analysis Total . | . . . . . . . . . . . . Derelict Logs Recovered 5 | . . . 2 . . . . 1 1 . 1 Drone Launches . | . . . . . . . . . . . . Drone Recoveries . | . . . . . . . . . . . . Exploration | -11 -10 -10 -9 -6 -6 -6 -5 -5 -5 -5 -4 ------------- Run | Yrd Mat Sub Scr Fac Was Fac Fac Upp Upp Zhi Pro Turns Passed 10019 | 92 1068 112 2382 1306 670 1660 405 896 619 10 799 Spaces Moved 7132 | 54 1179 117 2399 627 363 908 208 508 348 7 414 Core 146 | 4 . . . . . 27 1 . . . 114 Treads 2857 | . . . . 301 363 879 182 508 348 7 269 Legs 993 | 50 165 . 421 326 . . . . . . 31 Wheels 292 | . . . 292 . . . . . . . . Hover 2844 | . 1014 117 1686 . . 2 25 . . . . Flight . | . . . . . . . . . . . . Fastest Speed 50 | 50 56 56 56 160 160 50 80 160 160 160 50 Average Speed 121 | 114 65 58 98 181 160 157 151 160 160 160 136 Slowest Speed 650 | 120 190 120 200 240 160 200 200 160 160 160 650 Overloaded Moves . | . . . . . . . . . . . . Propulsion Burnouts . | . . . . . . . . . . . . Robots Hopped . | . . . . . . . . . . . . Potential Cave-ins . | . . . . . . . . . . . . Cave-ins Triggered . | . . . . . . . . . . . . Exploration Rate (%) 43 | 3 98 11 95 14 89 28 4 62 60 7 50 Regions Visited 11 Branch Regions 6 Pre-discovered Areas 2 | . . . . . . . . . 1 . 1 Known Exits Taken 1 | . . . . . . 1 . . . . . Unknown Exits Taken 8 | 1 1 1 1 . . . 1 1 1 1 . Scrap Searched 18 | . . . 10 . . . . 4 2 . 2 Spaces Dug 2 | . . . . 2 . . . . . . . Terrain Destroyed 458 | . . . . 14 357 31 19 2 4 . 31 Melee 2 | . . . . 2 . . . . . . . Projectile 39 | . . . . 12 . 7 1 2 4 . 13 AOE 417 | . . . . . 357 24 18 . . . 18 Terrain Rammed . | . . . . . . . . . . . . Walls Destroyed . | . . . . . . . . . . . . Machines Disabled . | . . . . . . . . . . . . Actions | -11 -10 -10 -9 -6 -6 -6 -5 -5 -5 -5 -4 --------- Run | Yrd Mat Sub Scr Fac Was Fac Fac Upp Upp Zhi Pro Total 8018 | 69 1394 147 2429 754 411 1045 268 579 387 6 529 Wait 331 | . 114 14 . 45 16 55 . 24 25 . 38 Move 7122 | 53 1178 116 2398 627 362 907 207 507 347 6 414 Hop . | . . . . . . . . . . . . Pick Up 73 | 3 14 3 13 10 6 8 6 6 . . 4 Fast Attach 55 | 6 10 . 5 10 . 3 12 3 . . 6 Attach 29 | 1 1 1 . 4 3 5 9 1 . . 4 Detach 9 | . 2 . . 2 1 1 . 3 . . . Swap 39 | . 11 1 1 11 2 6 1 3 1 . 2 Drop 71 | . 18 3 12 10 4 14 1 7 2 . . Fire 229 | 6 44 9 . 19 17 45 11 8 12 . 58 Melee 8 | . 2 . . 6 . . . . . . . Ram 2 | . . . . . . . 1 . . . 1 Kick 1 | . . . . . . . . . . . 1 Crush 22 | . . . . . . 1 20 . . . 1 Escape Stasis 10 | . . . . 10 . . . . . . . Rewire 16 | . . . . . . . . 16 . . . Trap . | . . . . . . . . . . . . Miscellaneous 1 | . . . . . . . . 1 . . . Route ------- -11/Scrapyard -10/Materials (discovered 5 exits: [*Mat x3] / [*Min] / [*Sub]) -10/Subcaves -9/Scraptown (discovered 2 exits: *Fac x2) -6/Factory (discovered 2 exits: Fac / Low) -6/Waste -6/Factory -5/Factory -5/Upper Caves -5/Upper Caves -5/Zhirov -4/Proximity Caves History --------- Turn | Location | Event 10 | -11/Scrapyard | Discovered new exit (range 16) 93 | -11/Scrapyard | Entered Materials 105 | -10/Materials | Discovered new exit (range 9) 127 | -10/Materials | Discovered new exit (range 3) 286 | -10/Materials | Repaired Aluminum Leg 307 | -10/Materials | Build established: Mutant 313 | -10/Materials | Repaired Aluminum Leg 341 | -10/Materials | Repaired Seismic Detector 459 | -10/Materials | Discovered new exit (range 16) 796 | -10/Materials | Discovered new exit (range 5) 1156 | -10/Materials | Discovered new exit (range 9) 1161 | -10/Materials | Entered Subcaves 1162 | -10/Subcaves | Approached by a straggling Scientist 1273 | -10/Subcaves | Entered Scraptown 1416 | -9/Scraptown | Visited Fellowship of the Rings 1435 | -9/Scraptown | Visited SPCMW 1457 | -9/Scraptown | Visited The Evicted 1575 | -9/Scraptown | Scanned Subdweller tech in exchange for log data 1576 | -9/Scraptown | Learned 8 Factory zone layouts 1582 | -9/Scraptown | Discovered new exit (range 11) 1629 | -9/Scraptown | Visited Junk Repository 1643 | -9/Scraptown | Visited Cave Peace 1668 | -9/Scraptown | Visited UFD Registry 1690 | -9/Scraptown | Visited Bundlers 1718 | -9/Scraptown | Visited Spacefarers 1952 | -9/Scraptown | Registered with UFD as "Cogflow" 1974 | -9/Scraptown | Visited Research Penetration Think Tank 1988 | -9/Scraptown | Visited Scrap Suit Storage 1995 | -9/Scraptown | Found Scrap Suit 2020 | -9/Scraptown | Visited Derelict Rescue Squad 2027 | -9/Scraptown | Found DRS Beacon 2074 | -9/Scraptown | Discovered new exit (range 5) 2088 | -9/Scraptown | Visited Chapter 10 2111 | -9/Scraptown | Visited Infowarlord's Domain 2116 | -9/Scraptown | Found Exp. Sensor Array 2127 | -9/Scraptown | Visited Junk Repository 2189 | -9/Scraptown | Delivered Scrap Shield to a Scientist 2364 | -9/Scraptown | Visited DA-N13 Charitable Foundation 2384 | -9/Scraptown | Found DCF Scrap (30 items) 2426 | -9/Scraptown | Visited Curators Association 2459 | -9/Scraptown | Visited Abandonware Association 2483 | -9/Scraptown | Learned abandonware demo "TRNCOAT.EXE" 2483 | -9/Scraptown | Learned abandonware demo "POISON.EXE" 3352 | -9/Scraptown | Met Optimus 3352 | -9/Scraptown | Accepted into 0bPrime 3532 | -9/Scraptown | Found Scrap Suit 3535 | -9/Scraptown | Found Scrap Suit 3655 | -9/Scraptown | Entered Factory 3655 | -6/Factory | Evolved 8 slots: Power x1, Propulsion x2, Utility x4, Weapon x1 3656 | -6/Factory | Identified exit to Lower Caves 3656 | -6/Factory | Identified exit to Factory 3780 | -6/Factory | Found Prototype Launcher 3781 | -6/Factory | Identified Scatter Rocket Array 4144 | -6/Factory | Build established: Gunner 4637 | -6/Factory | Repaired Imp. Medium Armor Plating 4961 | -6/Factory | Sucked down chute 4961 | -6/Factory | Entered Waste 4985 | -6/Waste | Spotted C-40 Crusher 5001 | -6/Waste | Destroyed C-40 Crusher 5006 | -6/Waste | Spotted C-40 Crusher 5013 | -6/Waste | Destroyed C-40 Crusher 5078 | -6/Waste | Spotted C-40 Crusher 5085 | -6/Waste | Spotted C-40 Crusher 5092 | -6/Waste | Destroyed C-40 Crusher 5098 | -6/Waste | Spotted C-40 Crusher 5100 | -6/Waste | Destroyed C-40 Crusher 5121 | -6/Waste | Spotted C-40 Crusher 5138 | -6/Waste | Destroyed C-40 Crusher 5160 | -6/Waste | Crushed by Compactor (1 part destroyed) 5160 | -6/Waste | Destroyed C-40 Crusher 5224 | -6/Waste | Warlord forces began an assault 5301 | -6/Waste | Discovered new exit (range 13) 5460 | -6/Waste | Murdered 7 allies 5495 | -6/Waste | Build established: Skirmisher 5615 | -6/Waste | Identified exit to Factory 5631 | -6/Waste | Entered Factory 5631 | -6/Factory | Accompanied by 12 allies 5780 | -6/Factory | Central database locked down 5981 | -6/Factory | First assault squad dispatched 6891 | -6/Factory | Lost 3 allies 7054 | -6/Factory | Lost 4 allies 7177 | -6/Factory | Found Prototype Processor 7177 | -6/Factory | Identified Exp. Targeting Computer 7214 | -6/Factory | Discovered exit to Factory (range 16) 7268 | -6/Factory | Core integrity fell below 50% 7271 | -6/Factory | Released all parts (9) 7288 | -6/Factory | Core integrity fell below 20% 7291 | -6/Factory | Entered another Factory area 7291 | -5/Factory | Evolved 2 slots: Utility x2 7297 | -5/Factory | Lost 4 parts (3n1w) 7310 | -5/Factory | Discovered new exit (range 11) 7332 | -5/Factory | Attached CPS modules to Y-64 Sentinel. 7334 | -5/Factory | Attached CPS modules to Y-64 Sentinel. 7403 | -5/Factory | Lost 4 parts (2n1u1w) 7591 | -5/Factory | First assault squad dispatched 7679 | -5/Factory | Build established: Scavenger-Tank 7696 | -5/Factory | Entered Upper Caves 7697 | -5/Upper Caves | Activated DRS Beacon 7698 | -5/Upper Caves | UFD Scientist delivered a prototype 7700 | -5/Upper Caves | Found Prototype Protection 7700 | -5/Upper Caves | Identified Enh. Scrap Shield 7969 | -5/Upper Caves | Learned location of 2 exits from Factory 8270 | -5/Upper Caves | Discovered new exit (range 8) 8302 | -5/Upper Caves | Attacked by a delusional Derelict stockpiling parts 8592 | -5/Upper Caves | Entered another Upper Caves area 8592 | -5/Upper Caves | Accompanied by 2 allies 8593 | -5/Upper Caves | Encountered a Warlord checkpoint 8969 | -5/Upper Caves | Attracted the attention of an 0b10 checkpoint 9167 | -5/Upper Caves | Discovered new exit (range 5) 9211 | -5/Upper Caves | Entered Zhirov 9211 | -5/Zhirov | Discovered new exit (range 3) 9221 | -5/Zhirov | Entered Proximity Caves 9368 | -4/Proximity Caves | Spotter reported a threat 9498 | -4/Proximity Caves | Attracted the attention of an 0b10 checkpoint 9525 | -4/Proximity Caves | Spotter reported a threat 9682 | -4/Proximity Caves | Spotter reported a threat 9724 | -4/Proximity Caves | System corruption reached 10% 9739 | -4/Proximity Caves | Attracted the attention of an 0b10 base 9748 | -4/Proximity Caves | Core integrity fell below 50% 9827 | -4/Proximity Caves | Lost 9 parts (1p2n3u3w) 9906 | -4/Proximity Caves | Learned location of Quarantine (-3) 9964 | -4/Proximity Caves | Core integrity fell below 20% 9964 | -4/Proximity Caves | Released all parts (3) 9994 | -4/Proximity Caves | Lost 8 parts (1p2n3u2w) 10013 | -4/Proximity Caves | Spotted B-86 Titan 10020 | -4/Proximity Caves | Destroyed by B-86 Titan with Hardcell Cannon Last Messages --------------- 09941_ S-27 Virus destroyed. 09946_ VTOL Module fries itself beyond repair. 09948_ Adv. Heat Sink destroyed. 09952_ VTOL Module fries itself beyond repair. 09952_ Autogun fries itself beyond repair. 09954_ Flexi-carbon Leg destroyed. 09954_ Critical hit (Burn: +50). 09957_ System corrupted: Matter fused (-9). 09961_ Slug penetrates Wall. 09963_ Wave Gun destroyed. 09964_ Released KE Penetrator. 09964_ Released Adv. Coolant Injector. 09964_ Released Beamcaster. 09964_ Acquired 18 matter. 09965_ Slammed into G-67 Veteran. 09976_ System corrupted: Component data lost. 10005_ Acquired Com. Battery. 10013_ System corrupted: Matter fused (-5). 10014_ Penetrated by Slug. 10017_ Slug penetrates Wall. Map ----- +----------------------------------------------------+ | ###??????????????????????????????????????????????? | | #????????????????????????????????????????????????? | | #????????????????????????????????????????????????? | | #????????????????????????????????????????????????? | | ?????????????????????????????????????????????????? | | ?????????????????????????????????????????????????? | | ?????????????????????????????????????????????????? | | ?????????????????????????????????????????????????? | | ?????????????????????????????????????????????????? | | ?????????????????????????????????????????????????? | | ?????????????????????????????????????????????????? | | ?????????????????????????????????????????????????? | | ?????????????????????????????????????????????????? | | ?????????????????????????????????????????????????? | | ?????????????????????????????????????????????????? | | ?????????????????????????????????????????????????? | | ?????????????????????????????????????????????????? | | ?????????????????????????????????????????????????? | | ?????????????????????????????????????????????????? | | ?????????????????????????????????????????????????? | | ???????????????????????####?????#????????????????? | | ????####????????????#### #??? #????????????????? | | ???## #?????????#;# ##?? ##???????????????? | | ???# ##########; ;##; ## #?????????? | | #???# #??????????? | | ##???# @ #??????????? | | ####### ######### #?????????? | | #??## #???????## ## BB #??????????? | | ###?# #????????##### ### BB #??????????? | | #?# #????????????# ##??? #??????????? | | #?# #????????????# #????? ??????????? | | ### #????????????# ??????### ??????????? | | ## #????????????# ????????????????????? | | % #????????????# ???????????????????? | | ## ####????????????? ## ???????????????????? | | # #???????????????? #?##??????????????????? | | ## #???????????????? ##?????????????????????? | | ### #????????????????#???????????????????????? | | #?## ???????????????????????????????????????? | | " #??? ??????????????????????????????????????? | | #??? ?????????????????????????????????????? | | ???# ?????????????????????????????????????? | | " ???? ????????????????????????????????????? | | " ???? ????????????????????????????????????? | | ? ???? ????????????????????????????????????? | | ? ??????? ?????????????????????????????????????? | | ?#???????? ?????????????????????????????????????? | | ?????????? ??????????????????????????????????????? | | ?????????????????????????????????????????????????? | | ?????????????????????????????????????????????????? | +----------------------------------------------------+ Best States ------------- Heat Dissipation 116 Coolant Potential 100 Energy Generation 39 Energy Capacity 900 Matter Stores 300 Matter Capacity 450 Sight Range 16 Robot Scan Range 20 Terrain Scan Density 10 ECM Strength 2 Armor Coverage 3700 Weapon Cycling 15 Evasion (%) 55 Targeting Accuracy 8 Recoil Reduction 4 Item Schematics ----------------- Hyp. Mass Driver | -6/Factory | Scanalyzed Robot Schematics ------------------ None Fabricated ------------ Nothing Repaired ---------- Aluminum Leg | 43% | -10/Materials Aluminum Leg | 66% | -10/Materials Seismic Detector | 50% | -10/Materials Imp. Medium Armor Plating | 35% | -6/Factory Studied --------- Imp. Medium Treads | -6/Factory | Hacked Hvy. Treads | -5/Factory | Hacked Alien Tech Used ----------------- None Achievements -------------- Collateral Damage Link The Feds Loot Taster Challenges ------------ None Game ------ Seed CompactThrusterPrototype Manual? 0 Play Time 01:36:38 Cumulative 71.5 hours Start 2026.04.29 @ 21:21:16 End 2026.04.29 @ 22:55:31 Sessions 1 Manual Loads 0 Difficulty Rogue Special Mode None Game No. 75 Rogue 75 Adventurer 0 Explorer 0 Win Type - Total 1 Types 1/0/0/0/0/0/0/0/0/0 Lore% 31 Gallery% 44 Achievement% 39 Wizard Run 0 Options --------- Layout 1 ASCII 0 Keyboard 0 Movement Mouse Keybinds 0 Fullscreen 1 Font 24/Smallcaps Map View 50x35 Zoom Use 0% Tactical HUD 1 Map Filters NONE Filters NONE Steam 1 RUN: eda2c861-940b-4055-9c34-ab84b42d8cb2